bitfinex/quotes_BTCUSD_20210101
["timestamp","ask_amount","ask_price","bid_price","bid_amount"]
[1609471272832,1.769822,29267.0,29266.0,1.3508]
[1609471273035,1.769822,29267.0,29266.0,1.0]
[1609471273036,1.84544586,29267.0,29266.0,1.0]
[1609471274252,1.84044586,29267.0,29266.0,1.0]
[1609471277156,1.98081281,29267.0,29266.0,1.0]
[1609471279756,1.84044586,29267.0,29266.0,1.0]
[1609471279980,1.77562386,29267.0,29266.0,1.0]
[1609471280182,0.07562386,29267.0,29266.0,1.0]
[1609471281184,0.07830642,29268.0,29266.0,1.0]
[1609471281583,0.064822,29267.0,29266.0,1.0]
[1609471281783,0.14313523,29267.0,29266.0,1.0]
[1609471282382,0.14313523,29267.0,29266.0,0.9996]
[1609471283684,0.07831323,29267.0,29266.0,0.9996]
[1609471283938,0.07831323,29267.0,29266.0,2.36717815]
[1609471284441,0.12405252,29267.0,29266.0,2.36717815]
[1609471284633,0.12405252,29267.0,29266.0,1.3146]
[1609471284838,0.34286393,29268.0,29266.0,1.3146]
[1609471285036,0.34286393,29268.0,29267.0,0.24]
[1609471285237,0.14036695,29268.0,29267.0,0.24]
[1609471285676,0.34288015,29268.0,29267.0,0.24]
[1609471285877,0.2025132,29268.0,29267.0,0.24]
[1609471286980,0.07841121,29268.0,29267.0,0.24]
[1609471287490,0.07841121,29268.0,29267.0,1.49257815]
[1609471287683,0.07841121,29268.0,29267.0,2.47059815]
[1609471288081,0.07841121,29268.0,29267.0,3.03168915]
[1609471288287,0.12412555,29269.0,29268.0,1.19]
[1609471288483,0.12412555,29269.0,29268.0,2.14257815]
[1609471288983,0.12416966,29270.0,29268.0,2.14257815]
[1609471289299,0.12416966,29270.0,29269.0,2.35757815]
[1609471289797,0.12416966,29270.0,29269.0,1.405]
[1609471290400,0.20269293,29270.0,29269.0,1.405]
[1609471290599,0.20269293,29270.0,29269.0,2.35757815]
[1609471290801,0.07847273,29270.0,29269.0,2.35757815]
[1609471291309,0.07847273,29270.0,29269.0,1.405]
[1609471291500,0.07847273,29270.0,29269.0,2.35757815]
[1609471291899,0.12420376,29270.0,29269.0,2.35757815]
[1609471292099,0.12420376,29270.0,29269.0,1.405]
[1609471292302,0.12420376,29270.0,29269.0,1.0]
[1609471292708,0.63629062,29271.0,29269.0,1.0]
[1609471292910,0.064822,29270.0,29269.0,1.0]
[1609471293109,0.26799,29270.0,29269.0,1.0]
[1609471293706,0.203168,29270.0,29269.0,1.0]
[1609471293909,0.12449774,29270.0,29269.0,1.15]
[1609471294304,0.07866334,29270.0,29269.0,1.15]
[1609471294805,0.67866334,29270.0,29269.0,1.15]
[1609471295527,0.67866334,29270.0,29269.0,1.0]
[1609471296128,0.81903029,29270.0,29269.0,1.0]
[1609471296327,0.81903029,29270.0,29269.0,0.995]
[1609471297031,0.21903029,29270.0,29269.0,0.995]
[1609471297232,0.07866334,29270.0,29269.0,0.995]
[1609471297432,0.07866334,29270.0,29269.0,1.14]
[1609471298776,0.07866334,29270.0,29269.0,2.19257815]
[1609471299175,0.10968803,29270.0,29269.0,2.19257815]
[1609471300276,0.07855406,29273.0,29269.0,2.19257815]
[1609471300473,0.07855406,29273.0,29270.0,0.95257815]
[1609471300708,0.07855406,29273.0,29272.0,1.0]
[1609471300908,0.07855406,29273.0,29272.0,1.355]
[1609471301309,0.07855406,29273.0,29272.0,1.455]
[1609471302105,0.0785393,29274.0,29272.0,1.455]
[1609471302306,0.0785393,29274.0,29273.0,0.36]
[1609471302511,0.21890625,29274.0,29273.0,0.56446]
[1609471304426,0.0785393,29274.0,29273.0,0.56446]
[1609471305127,0.07854884,29275.0,29273.0,0.56446]
[1609471305330,0.07854884,29275.0,29274.0,0.245]
[1609471305530,0.07854884,29275.0,29274.0,1.245]
[1609471306135,0.0785565,29277.0,29274.0,2.19757815]
[1609471306348,0.0785565,29277.0,29275.0,1.67257815]
[1609471306633,0.0785565,29277.0,29276.0,1.0]
[1609471306933,0.14036695,29279.0,29276.0,2.15257815]
[1609471307133,0.14036695,29279.0,29277.0,1.74366915]
[1609471307334,0.14036695,29279.0,29278.0,1.56757815]
[1609471307537,0.14036695,29279.0,29278.0,1.92866915]
[1609471307942,0.21887058,29279.0,29278.0,1.92866915]
[1609471308333,0.30187452,29279.0,29278.0,1.92866915]
[1609471308737,0.30187452,29279.0,29278.0,0.976091]
[1609471308935,0.30187452,29279.0,29278.0,0.615]
[1609471309134,0.16150757,29279.0,29278.0,0.1]
[1609471309336,0.07850363,29279.0,29276.0,1.0]
[1609471309540,0.064822,29278.0,29276.0,1.0]
[1609471309735,0.064822,29278.0,29277.0,0.15]
[1609471310159,0.22633794,29278.0,29277.0,0.15]
[1609471310567,2.5933359,29278.0,29276.0,1.0]
[1609471311166,0.16161315,29277.0,29276.0,1.0]
[1609471311365,0.41161315,29277.0,29276.0,1.0]
[1609471311561,0.32860827,29277.0,29276.0,1.0]
[1609471311760,0.25,29277.0,29276.0,1.0]
[1609471311963,0.32861851,29277.0,29276.0,1.0]
[1609471312260,0.46898546,29277.0,29276.0,1.0]
[1609471312462,0.46897451,29277.0,29276.0,1.0]
[1609471313165,0.32860756,29277.0,29276.0,1.0]
[1609471313362,0.07860756,29277.0,29276.0,1.0]
[1609471313909,0.07862798,29278.0,29276.0,1.0]
[1609471314111,0.064822,29277.0,29276.0,1.0]
[1609471315007,0.14348665,29277.0,29276.0,1.0]
[1609471319676,0.2838536,29277.0,29276.0,1.0]
[1609471320880,0.14348665,29277.0,29276.0,1.0]
[1609471321579,0.07866465,29277.0,29276.0,1.0]
[1609471322480,0.07868115,29279.0,29276.0,1.0]
[1609471323183,0.07875225,29277.0,29276.0,1.0]
[1609471323582,0.07875282,29278.0,29276.0,1.0]
[1609471323882,0.07875563,29277.0,29276.0,1.0]
[1609471325209,0.07875563,29277.0,29276.0,1.1]
[1609471325411,0.07876814,29278.0,29276.0,1.1]
[1609471325712,0.145,29277.0,29276.0,1.1]
[1609471326113,0.22378551,29277.0,29276.0,1.1]
[1609471326311,0.07878551,29277.0,29276.0,1.1]
[1609471327011,0.07878484,29278.0,29276.0,1.1]
[1609471327411,0.07879066,29279.0,29276.0,1.1]
[1609471327812,0.07379066,29279.0,29276.0,1.1]
[1609471328112,0.07872262,29278.0,29276.0,1.0]
[1609471328614,0.59072262,29278.0,29276.0,1.0]
[1609471328839,0.512,29278.0,29276.0,1.0]
[1609471329039,0.07872854,29277.0,29276.0,1.0]
[1609471331174,0.21909543,29277.0,29276.0,1.0]
[1609471331672,0.21909543,29277.0,29276.0,1.175]
[1609471332274,0.93391743,29277.0,29276.0,1.0]
[1609471334808,0.92891743,29277.0,29276.0,1.0]
[1609471335012,1.17891743,29277.0,29276.0,1.0]
[1609471335420,1.36788743,29277.0,29276.0,1.0]
[1609471335615,1.22752054,29277.0,29276.0,1.0]
[1609471335918,0.6967425,29276.0,29265.0,0.010325]
[1609471336517,0.08293479,29266.0,29265.0,0.010325]
[1609471336819,0.16249,29266.0,29265.0,0.010325]
[1609471337018,0.24083507,29266.0,29265.0,0.260325]
[1609471337714,0.38120196,29266.0,29265.0,0.260325]
[1609471341351,0.46566224,29275.0,29266.0,0.45]
[1609471341559,0.08292548,29267.0,29266.0,0.45]
[1609471341860,0.01256948,29267.0,29266.0,0.45]
[1609471342354,0.33442538,29270.0,29266.0,0.45]
[1609471344511,0.28060538,29270.0,29266.0,0.45]
[1609471345010,0.03511538,29270.0,29266.0,0.45]
[1609471347015,0.03511538,29270.0,29267.0,1.0]
[1609471347216,0.03511538,29270.0,29268.0,0.215]
[1609471351742,0.03511538,29270.0,29267.0,1.0]
[1609471351941,0.28147538,29270.0,29267.0,1.0]
[1609471352139,0.74313826,29270.0,29266.0,1.0]
[1609471352438,0.25,29269.0,29266.0,1.0]
[1609471354038,0.7623,29269.0,29266.0,1.0]
[1609471354635,0.7979375,29269.0,29266.0,1.0]
[1609471354838,0.25,29268.0,29266.0,1.0]
[1609471355058,0.03511538,29267.0,29265.0,0.010325]
[1609471356356,0.19,29266.0,29265.0,0.010325]
[1609471356655,0.06985619,29266.0,29265.0,0.010325]
[1609471364155,0.28485619,29266.0,29265.0,0.010325]
[1609471367783,0.38485619,29266.0,29265.0,0.010325]
[1609471368587,0.06985619,29266.0,29265.0,0.010325]
[1609471368986,0.07004699,29267.0,29265.0,0.010325]
[1609471369191,0.07005017,29266.0,29265.0,0.010325]
[1609471369486,0.07004281,29267.0,29265.0,0.160325]
[1609471370114,0.5479375,29269.0,29265.0,0.160325]
[1609471370410,0.65099805,29269.0,29265.0,0.160325]
[1609471370810,0.5479375,29269.0,29265.0,0.160325]
[1609471373903,0.5479375,29269.0,29265.0,0.010325]
[1609471374042,0.07009281,29268.0,29265.0,0.010325]
[1609471374243,0.59009281,29268.0,29265.0,0.010325]
[1609471374449,0.25,29267.0,29265.0,0.010325]
[1609471374643,0.32128404,29267.0,29265.0,0.010325]
[1609471375981,0.32128404,29267.0,29264.0,1.0]
[1609471376184,1.52,29265.0,29262.0,0.0002]
[1609471376387,0.59009281,29263.0,29261.0,1.027256]
[1609471376579,0.81989281,29263.0,29261.0,1.027256]
[1609471376884,3.0,29262.0,29261.0,0.027256]
[1609471377085,4.67,29262.0,29261.0,0.00548503]
[1609471377485,4.96232468,29262.0,29261.0,0.00548503]
[1609471378992,0.45109224,29260.0,29256.0,0.0006]
[1609471379184,3.67009281,29258.0,29256.0,0.0006]
[1609471380006,3.7413926,29258.0,29256.0,0.0006]
[1609471380409,4.5113926,29258.0,29256.0,0.0006]
[1609471380610,0.9113926,29258.0,29256.0,0.0006]
[1609471381008,0.3913926,29258.0,29256.0,0.0006]
[1609471381210,0.9113926,29258.0,29256.0,0.0006]
[1609471381417,0.62492421,29257.0,29255.0,0.0004]
[1609471381619,0.62492421,29257.0,29251.0,0.0004]
[1609471381620,1.23879579,29256.0,29251.0,0.0004]
[1609471381820,1.23879579,29256.0,29247.0,1.00106899]
[1609471381821,3.9,29250.0,29246.0,0.0008]
[1609471382017,0.07009281,29249.0,29246.0,0.0008]
[1609471382220,0.07009281,29249.0,29246.0,0.001]
[1609471382221,1.03378506,29249.0,29246.0,0.001]
[1609471382518,4.15,29247.0,29244.0,0.0002]
[1609471382721,1.0,29245.0,29232.0,0.078]
[1609471382916,1.0,29245.0,29229.0,0.03426812]
[1609471383116,0.25,29244.0,29229.0,0.03426812]
[1609471383314,0.18889,29244.0,29230.0,0.49286812]
[1609471383514,0.18889,29244.0,29231.0,1.64357815]
[1609471383719,0.5128,29237.0,29232.0,0.95257815]
[1609471383916,0.5128,29237.0,29231.0,0.676]
[1609471383917,0.6854,29237.0,29231.0,1.62857815]
[1609471384116,0.6854,29237.0,29233.0,0.315]
[1609471385253,0.6854,29237.0,29234.0,0.15]
[1609471385456,0.6854,29237.0,29234.0,1.10257815]
[1609471386051,0.6854,29237.0,29231.0,0.676]
[1609471386256,0.6854,29237.0,29232.0,0.95257815]
[1609471386953,0.6854,29237.0,29232.0,0.0002]
[1609471387355,0.6854,29237.0,29233.0,0.2]
[1609471387758,0.6854,29237.0,29234.0,0.235]
[1609471387957,0.6854,29237.0,29231.0,0.6762]
[1609471388755,0.6854,29237.0,29231.0,0.6512]
[1609471392023,0.6854,29237.0,29231.0,0.8512]
[1609471392424,0.6854,29237.0,29231.0,0.6512]
[1609471394225,0.72107701,29237.0,29231.0,0.6512]
[1609471395647,0.72107701,29237.0,29231.0,0.8512]
[1609471396051,0.72107701,29237.0,29231.0,0.0002]
[1609471396252,0.72107701,29237.0,29230.0,0.0008]
[1609471396754,0.15,29236.0,29230.0,0.0008]
[1609471397151,0.20827701,29237.0,29230.0,0.0008]
[1609471397854,0.20827701,29237.0,29231.0,0.95257815]
[1609471398157,0.20827701,29237.0,29233.0,0.2]
[1609471398158,0.03567701,29237.0,29233.0,0.2]
[1609471398355,0.01782442,29243.0,29236.0,0.561091]
[1609471398562,0.27803688,29247.0,29238.0,0.561091]
[1609471398563,0.00203688,29247.0,29238.0,0.561091]
[1609471398763,0.00203782,29249.0,29239.0,1.15257815]
[1609471398956,0.00203782,29249.0,29241.0,0.23346812]
[1609471399161,0.03567014,29251.0,29241.0,1.18604627]
[1609471399364,0.51250001,29248.0,29244.0,1.0]
[1609471400170,0.71275001,29248.0,29244.0,1.0]
[1609471400873,0.71275001,29248.0,29244.0,0.28914875]
[1609471401070,0.51250001,29248.0,29244.0,1.15257815]
[1609471401379,1.0,29250.0,29245.0,1.15624627]
[1609471401573,1.0,29250.0,29247.0,0.361091]
[1609471401775,1.0,29250.0,29249.0,2.211091]
[1609471402081,0.2631,29255.0,29249.0,3.50366915]
[1609471402281,0.2631,29255.0,29250.0,1.28438117]
[1609471402581,0.2631,29255.0,29252.0,0.651091]
[1609471402781,0.2631,29255.0,29254.0,0.361091]
[1609471402978,0.2631,29255.0,29254.0,1.31366915]
[1609471403175,0.2631,29255.0,29254.0,1.31386915]
[1609471403475,0.2631,29255.0,29254.0,1.61886915]
[1609471403680,0.2631,29255.0,29254.0,0.666291]
[1609471403958,0.2631,29255.0,29254.0,0.0002]
[1609471404228,0.2631,29255.0,29248.0,0.361091]
[1609471404427,0.2631,29255.0,29249.0,0.95257815]
[1609471404627,0.2631,29255.0,29250.0,0.2]
[1609471404825,0.2631,29255.0,29252.0,0.361091]
[1609471405021,0.2631,29255.0,29250.0,1.35257815]
[1609471405320,0.2631,29255.0,29251.0,0.0002]
[1609471405857,0.2631,29255.0,29250.0,0.2]
[1609471406056,0.2631,29255.0,29251.0,0.361091]
[1609471406259,0.2631,29255.0,29251.0,0.361291]
[1609471406756,0.2631,29255.0,29251.0,0.561291]
[1609471407055,0.2631,29255.0,29253.0,0.361091]
[1609471407255,0.2631,29255.0,29252.0,0.1902]
[1609471407456,0.2631,29255.0,29252.0,0.0002]
[1609471407855,0.2631,29255.0,29250.0,0.361091]
[1609471408455,0.2631,29255.0,29250.0,0.361291]
[1609471409157,0.2631,29255.0,29250.0,1.51366915]
[1609471409459,0.2631,29255.0,29251.0,0.2]
[1609471409698,0.2631,29255.0,29248.0,0.361091]
[1609471409898,0.42008,29255.0,29247.0,0.0002]
[1609471410094,0.5443,29255.0,29247.0,0.69289402]
[1609471410295,0.80913502,29254.0,29247.0,0.361091]
[1609471410496,0.80913502,29254.0,29248.0,0.4]
[1609471411495,0.80913502,29254.0,29247.0,0.0002]
[1609471411793,0.80913502,29254.0,29246.0,1.0002]
[1609471412192,0.80913502,29254.0,29247.0,0.361091]
[1609471412396,0.81119969,29254.0,29247.0,0.0002]
[1609471412797,0.80913502,29254.0,29247.0,0.0002]
[1609471413001,0.81120422,29254.0,29248.0,1.10257815]
[1609471413296,0.81120422,29254.0,29249.0,1.31366915]
[1609471413495,0.81120422,29254.0,29250.0,0.95257815]
[1609471413898,0.81120422,29254.0,29249.0,0.0002]
[1609471414106,0.80913502,29254.0,29247.0,0.0002]
[1609471414904,0.80913502,29254.0,29246.0,1.0]
[1609471415105,0.51250001,29251.0,29245.0,0.0002]
[1609471415315,0.51250001,29251.0,29244.0,0.6497]
[1609471415614,0.41250001,29251.0,29243.0,0.0002]
[1609471415816,0.41250001,29251.0,29242.0,0.0002]
[1609471416018,0.03566321,29250.0,29242.0,0.0002]
[1609471416218,0.03566321,29250.0,29241.0,1.0]
[1609471416414,0.03566321,29250.0,29242.0,0.15]
[1609471416913,0.03566321,29250.0,29242.0,0.1502]
[1609471417612,0.03566321,29250.0,29242.0,0.1252]
[1609471418114,0.03566321,29250.0,29242.0,0.0002]
[1609471418317,0.55566321,29250.0,29240.0,0.0002]
[1609471418715,0.08912211,29249.0,29240.0,0.0002]
[1609471418978,0.08912211,29249.0,29239.0,1.0]
[1609471418979,0.28895211,29249.0,29239.0,1.0]
[1609471419342,0.00620399,29248.0,29239.0,1.0]
[1609471419744,0.00206766,29247.0,29239.0,1.0]
[1609471419937,0.00206766,29247.0,29239.0,1.205]
[1609471420140,0.51260001,29245.0,29240.0,0.0002]
[1609471421270,0.51260001,29245.0,29238.0,0.2]
[1609471421477,0.51260001,29245.0,29239.0,0.361091]
[1609471421671,0.51260001,29245.0,29240.0,0.225]
[1609471422173,0.51260001,29245.0,29239.0,0.0002]
[1609471422473,0.51260001,29245.0,29238.0,0.361091]
[1609471422972,0.51260001,29245.0,29237.0,0.0002]
[1609471423171,0.51260001,29245.0,29238.0,0.361091]
[1609471423774,0.51260001,29245.0,29238.0,0.561091]
[1609471423972,0.51260001,29245.0,29239.0,0.17]
[1609471424173,0.51260001,29245.0,29239.0,0.1702]
[1609471424605,0.51260001,29245.0,29239.0,0.0002]
[1609471424802,0.51260001,29245.0,29237.0,0.0002]
[1609471425002,0.51466605,29245.0,29237.0,0.0002]
[1609471425208,0.07133807,29244.0,29236.0,1.0]
[1609471425407,0.07340367,29244.0,29233.0,1.0002]
[1609471425703,0.62076023,29244.0,29233.0,1.0002]
[1609471425906,0.00206354,29241.0,29233.0,1.0002]
[1609471426101,0.20573354,29241.0,29233.0,1.0002]
[1609471426307,0.5127,29239.0,29233.0,1.0002]
[1609471426500,0.5127,29239.0,29233.0,0.0002]
[1609471426703,0.5127,29239.0,29232.0,0.6743]
[1609471427706,0.51476394,29239.0,29232.0,0.6743]
[1609471427905,0.51476394,29239.0,29233.0,0.361091]
[1609471428206,0.51476394,29239.0,29233.0,0.561291]
[1609471428605,0.51476394,29239.0,29233.0,1.51386915]
[1609471428809,0.51476394,29239.0,29235.0,0.686091]
[1609471429007,0.51476394,29239.0,29235.0,0.886091]
[1609471429406,0.5127,29239.0,29235.0,0.886091]
[1609471429602,0.5127,29239.0,29235.0,0.881091]
[1609471430223,0.5127,29239.0,29234.0,0.0002]
[1609471430531,0.5127,29239.0,29234.0,0.361091]
[1609471430726,0.5127,29239.0,29233.0,0.0002]
[1609471430927,0.5127,29239.0,29234.0,0.361091]
[1609471431627,0.5127,29239.0,29234.0,0.445]
[1609471431826,0.5127,29239.0,29234.0,0.806091]
[1609471432928,0.5127,29239.0,29234.0,0.611091]
[1609471433131,0.5127,29239.0,29233.0,0.0002]
[1609471433328,0.5127,29239.0,29232.0,0.6745]
[1609471436720,0.5127,29239.0,29233.0,0.361091]
[1609471436922,0.5127,29239.0,29234.0,0.305]
[1609471437120,0.5127,29239.0,29233.0,0.0002]
[1609471437520,0.5127,29239.0,29232.0,0.6745]
[1609471438220,0.51476343,29239.0,29232.0,0.6745]
[1609471438621,0.51476343,29239.0,29232.0,0.6695]
[1609471438822,0.51476343,29239.0,29232.0,0.6693]
[1609471439226,0.155,29238.0,29232.0,0.6693]
[1609471439846,1.0,29237.0,29232.0,0.6693]
[1609471440049,1.21264,29237.0,29231.0,0.0002]
[1609471440247,0.215,29236.0,29230.0,0.0008]
[1609471440651,0.21705998,29236.0,29230.0,0.0008]
[1609471441046,0.68380001,29234.0,29230.0,0.0008]
[1609471441649,0.135,29233.0,29230.0,0.0008]
[1609471441847,0.655,29233.0,29230.0,0.0008]
[1609471442053,0.65705906,29233.0,29230.0,0.0008]
[1609471442652,0.29,29232.0,29230.0,0.0006]
[1609471442950,0.39703102,29232.0,29230.0,0.0006]
[1609471443149,1.08093103,29232.0,29230.0,0.0006]
[1609471443351,1.07593103,29232.0,29230.0,0.0006]
[1609471443849,1.285,29231.0,29230.0,0.0006]
[1609471444047,2.59941,29231.0,29230.0,0.0006]
[1609471444349,1.44941,29231.0,29230.0,0.0006]
[1609471444750,1.45146513,29231.0,29230.0,0.0006]
[1609471444948,1.44941,29231.0,29230.0,0.0006]
[1609471445775,1.71676656,29231.0,29230.0,0.0006]
[1609471445978,3.56881674,29231.0,29230.0,0.0006]
[1609471447477,3.56676656,29231.0,29230.0,0.0006]
[1609471447877,3.56881654,29231.0,29230.0,0.0006]
[1609471448676,1.71881654,29231.0,29230.0,0.0006]
[1609471449110,0.72086787,29231.0,29230.0,0.0006]
[1609471449309,0.00410131,29231.0,29230.0,1.27815815]
[1609471449516,0.00410131,29231.0,29230.0,2.06771864]
[1609471449712,0.00410131,29231.0,29230.0,2.38118676]
[1609471449913,0.00615261,29232.0,29230.0,2.38118676]
[1609471450119,0.00615261,29232.0,29231.0,5.41366915]
[1609471450319,0.00205439,29237.0,29235.0,0.361091]
[1609471450512,0.00205439,29237.0,29236.0,3.72707106]
[1609471450718,0.00205439,29237.0,29236.0,4.43467106]
[1609471450948,0.00205439,29237.0,29236.0,1.068691]
[1609471451148,0.00205659,29240.0,29236.0,0.7076]
[1609471451546,0.00205593,29239.0,29236.0,0.195]
[1609471452142,0.00205593,29239.0,29236.0,0.1952]
[1609471452450,0.00205593,29239.0,29237.0,0.361091]
[1609471452647,0.00205593,29239.0,29238.0,1.435]
[1609471452849,0.00205747,29240.0,29238.0,1.796091]
[1609471453046,0.00205747,29240.0,29239.0,1.461291]
[1609471453243,0.00205747,29240.0,29239.0,0.556291]
[1609471453646,0.00205747,29240.0,29239.0,0.1952]
[1609471453847,0.00205747,29240.0,29239.0,0.0002]
[1609471454051,0.00411502,29240.0,29236.0,0.0002]
[1609471454351,0.07327869,29241.0,29236.0,0.0002]
[1609471454778,0.00205591,29237.0,29235.0,1.6835]
[1609471454972,0.00205591,29237.0,29236.0,0.361091]
[1609471455278,0.00411282,29237.0,29235.0,1.6835]
[1609471455474,0.00411282,29237.0,29236.0,1.611091]
[1609471455670,0.00411282,29237.0,29236.0,2.055371]
[1609471455877,0.00411282,29237.0,29236.0,2.901281]
[1609471456174,0.00411282,29237.0,29236.0,1.456281]
[1609471456574,0.00411282,29237.0,29236.0,1.651281]
[1609471456778,0.00411282,29237.0,29236.0,1.150731]
[1609471456981,0.00616921,29237.0,29236.0,1.021091]
[1609471457676,0.00411282,29237.0,29235.0,1.6835]
[1609471458076,0.00411282,29237.0,29236.0,0.0002]
[1609471458575,0.00411282,29237.0,29235.0,1.0]
[1609471458978,0.0061681,29237.0,29235.0,1.0]
[1609471459175,0.0061681,29237.0,29235.0,1.0002]
[1609471459380,0.00411287,29236.0,29235.0,1.566291]
[1609471459780,0.00411287,29236.0,29235.0,1.205]
[1609471460797,0.01028153,29236.0,29235.0,1.205]
[1609471460997,0.00616866,29236.0,29235.0,1.205]
[1609471461195,0.00616866,29236.0,29235.0,1.0]
[1609471461399,0.01028128,29236.0,29235.0,0.995]
[1609471461799,0.01028128,29236.0,29233.0,1.0002]
[1609471461998,0.00616866,29236.0,29233.0,1.0002]
[1609471462199,0.00616866,29236.0,29234.0,0.195]
[1609471462402,0.00616866,29236.0,29235.0,1.92]
[1609471462708,0.07437799,29241.0,29236.0,0.7]
[1609471462904,1.15905398,29243.0,29236.0,0.895]
[1609471463102,1.15905398,29243.0,29236.0,0.8952]
[1609471463298,1.1233802,29243.0,29236.0,0.8952]
[1609471463502,0.1233802,29243.0,29237.0,0.42]
[1609471463708,0.07851259,29240.0,29237.0,0.4202]
[1609471464132,0.07708,29241.0,29237.0,0.0002]
[1609471464266,0.07850776,29239.0,29235.0,0.0002]
[1609471464860,0.07850776,29239.0,29230.0,2.1993]
[1609471464861,0.07850776,29239.0,29231.0,0.0002]
[1609471465660,0.00205517,29234.0,29232.0,0.6705]
[1609471465857,0.00616509,29234.0,29232.0,0.6705]
[1609471466497,0.00205505,29233.0,29232.0,0.6705]
[1609471467602,0.00410926,29233.0,29232.0,0.6705]
[1609471467899,0.5128,29237.0,29232.0,0.6705]
[1609471468101,0.5128,29237.0,29233.0,0.2702]
[1609471468500,0.0784641,29236.0,29233.0,0.2702]
[1609471468702,0.0784641,29236.0,29233.0,0.0002]
[1609471469005,0.0784641,29236.0,29232.0,0.6703]
[1609471469205,0.0784641,29236.0,29233.0,1.14757815]
[1609471469406,0.0784641,29236.0,29233.0,0.195]
[1609471469602,0.0784641,29236.0,29234.0,0.0002]
[1609471470023,0.0784641,29236.0,29233.0,0.0002]
[1609471470326,0.07989871,29238.0,29233.0,0.1952]
[1609471470523,0.53052442,29239.0,29233.0,0.1952]
[1609471470722,0.53052442,29239.0,29233.0,0.0002]
[1609471470929,0.07990224,29238.0,29232.0,0.6703]
[1609471471124,0.07990224,29238.0,29233.0,1.30257815]
[1609471471324,0.07990224,29238.0,29233.0,1.33604627]
[1609471471527,0.07990224,29238.0,29234.0,0.0002]
[1609471471726,0.07990224,29238.0,29235.0,0.295]
[1609471472127,0.07990224,29238.0,29235.0,0.0002]
[1609471472525,0.07990224,29238.0,29234.0,0.195]
[1609471473028,0.07996165,29240.0,29234.0,0.1952]
[1609471473226,0.07996165,29240.0,29235.0,0.275]
[1609471473625,0.07996165,29240.0,29235.0,0.2752]
[1609471474029,0.07996165,29240.0,29235.0,1.22777815]
[1609471474231,0.07996165,29240.0,29236.0,0.0002]
[1609471474431,0.2046838,29241.0,29237.0,0.21]
[1609471474628,0.2046838,29241.0,29236.0,0.28296]
[1609471474835,0.2046838,29241.0,29237.0,1.31366915]
[1609471475043,0.08139161,29241.0,29240.0,4.52075384]
[1609471475355,0.08139161,29241.0,29240.0,5.70180011]
[1609471475560,0.12321911,29247.0,29240.0,6.78680011]
[1609471475754,0.12321911,29247.0,29246.0,3.93533254]
[1609471475960,0.08143894,29252.0,29246.0,6.20995981]
[1609471475961,0.12320096,29248.0,29246.0,6.20995981]
[1609471476154,0.12320096,29248.0,29247.0,3.91366915]
[1609471476350,0.12320096,29248.0,29247.0,3.91386915]
[1609471476557,0.20467245,29252.0,29248.0,0.33180302]
[1609471476757,0.08143894,29252.0,29249.0,1.31366915]
[1609471476953,0.08143894,29252.0,29250.0,0.195]
[1609471477155,0.08143894,29252.0,29251.0,0.361091]
[1609471477554,0.08143894,29252.0,29251.0,0.361291]
[1609471478052,0.08143894,29252.0,29251.0,0.361091]
[1609471478957,0.087691,29253.0,29251.0,0.361091]
[1609471480399,0.087691,29253.0,29252.0,2.10257815]
[1609471480604,0.087691,29253.0,29252.0,3.73678915]
[1609471480802,0.087691,29253.0,29252.0,2.68678915]
[1609471481435,0.087691,29253.0,29252.0,3.46049226]
[1609471481632,0.087691,29253.0,29252.0,6.19396038]
[1609471482036,0.80913502,29254.0,29253.0,4.54309402]
[1609471482330,0.80913502,29254.0,29253.0,5.72414029]
[1609471482634,0.8111919,29254.0,29253.0,6.72414029]
[1609471483032,0.80913502,29254.0,29253.0,6.72394029]
[1609471483628,0.80913502,29254.0,29253.0,5.73789402]
[1609471483833,0.80913502,29254.0,29253.0,0.556091]
[1609471484538,0.80913502,29254.0,29253.0,2.406091]
[1609471485057,0.80913502,29254.0,29253.0,2.841091]
[1609471485354,0.80913502,29254.0,29253.0,0.361091]
[1609471485755,0.80913502,29254.0,29253.0,1.31366915]
[1609471486059,0.80913502,29254.0,29253.0,0.361091]
[1609471486455,0.80913502,29254.0,29253.0,1.461091]
[1609471486756,0.80913502,29254.0,29253.0,0.626091]
[1609471487554,0.80913502,29254.0,29253.0,1.326091]
[1609471487756,0.80913502,29254.0,29253.0,0.626091]
[1609471488057,0.80913502,29254.0,29253.0,1.626091]
[1609471488454,0.80913502,29254.0,29253.0,2.476091]
[1609471488956,0.80913502,29254.0,29253.0,1.626091]
[1609471489454,0.80913502,29254.0,29253.0,1.624841]
[1609471490677,0.80913502,29254.0,29253.0,2.57741915]
[1609471491778,0.80913502,29254.0,29253.0,1.624841]
[1609471492179,0.80913502,29254.0,29253.0,2.57741915]
[1609471492582,0.80913502,29254.0,29253.0,6.02741915]
[1609471492784,0.80913502,29254.0,29253.0,2.57741915]
[1609471493381,0.80913502,29254.0,29253.0,4.67741915]
[1609471494228,0.80913502,29254.0,29253.0,2.57741915]
[1609471494428,0.80913502,29254.0,29253.0,3.12741915]
[1609471494633,0.80913502,29254.0,29253.0,2.77241915]
[1609471494836,0.80913502,29254.0,29253.0,1.624841]
[1609471495432,0.80913502,29254.0,29253.0,2.524841]
[1609471496863,0.80413502,29254.0,29253.0,1.624841]
[1609471497758,0.99383502,29254.0,29253.0,1.624841]
[1609471501289,0.99383502,29254.0,29253.0,2.324841]
[1609471501692,0.99383502,29254.0,29253.0,3.27741915]
[1609471501891,0.80413502,29254.0,29253.0,3.27741915]
[1609471502296,0.80413502,29254.0,29253.0,4.12741915]
[1609471502493,0.80413502,29254.0,29253.0,3.27741915]
[1609471503294,0.80413502,29254.0,29253.0,3.27241915]
[1609471503493,0.80413502,29254.0,29253.0,2.57241915]
[1609471503892,0.80413502,29254.0,29253.0,1.619841]
[1609471504298,0.81029747,29254.0,29253.0,2.869841]
[1609471504499,0.81029747,29254.0,29253.0,3.82241915]